[Event "14th SRB-ch Women 2020"]
[Site "Vrnjacka Banja"]
[Date "2020.12.08"]
[Round "3.4"]
[White "Rapport, Jovana"]
[Black "Eric, Jovana"]
[Result "1/2-1/2"]
[ECO "A12"]
[WhiteElo "2308"]
[BlackElo "2278"]
[Annotator "NA"]
[PlyCount "22"]
[EventDate "2020.12.07"]
[EventType "tourn"]
[EventCountry "SRB"]
[SourceTitle "playchess.com"]
[Source "ChessBase"]
[SourceQuality "1"]
[TimeControl "40/5400+30:1800+30"]

1. Nf3 {[%emt 0:00:15]} d5 {[%emt 0:00:00]} 2. g3 {[%emt 0:00:03]} Nf6 {[%emt 0:00:00]} 3. Bg2 {[%emt 0:00:03]} c6 {[%emt 0:00:00]} 4. O-O {[%emt 0:00:18]} Bf5 {[%emt 0:00:00]} 5. d3 {[%emt 0:00:12]} e6 {[%emt 0:00:12]} 6. b3 {[%emt 0:00:17]} h6 {[%emt 0:00:10]} 7. Bb2 {[%emt 0:00:03]} Be7 {[%emt 0:00:19]} 8. c4 {[%emt 0:00:34]} O-O {[%emt 0:00:10]} 9. Nbd2 {[%emt 0:00:21]} a5 {[%emt 0:00:21]} 10. Rc1 {[%emt 0:00:11]} Na6 {[%emt 0:00:11]} 11. a3 {[%emt 0:00:20]} b5 {[%emt 0:00:49]} 1/2-1/2

[Event "14th SRB-ch Women 2020"]
[Site "Vrnjacka Banja"]
[Date "2020.12.09"]
[Round "4.1"]
[White "Velikic, Adela"]
[Black "Injac, Teodora"]
[Result "1/2-1/2"]
[ECO "B55"]
[WhiteElo "2278"]
[BlackElo "2290"]
[Annotator "RC"]
[PlyCount "60"]
[EventDate "2020.12.07"]
[EventType "tourn"]
[EventCountry "SRB"]
[SourceTitle "playchess.com"]
[Source "ChessBase"]
[SourceQuality "1"]
[TimeControl "40/5400+30:1800+30"]

1. e4 {[%emt 0:00:00]} c5 {[%emt 0:00:00]} 2. Nf3 {[%emt 0:00:00]} d6 {[%emt 0:00:00]} 3. d4 {[%emt 0:00:00]} cxd4 {[%emt 0:00:00]} 4. Nxd4 {[%emt 0:00:00]} Nf6 {[%emt 0:00:00]} 5. f3 {[%emt 0:00:00]} e5 {[%emt 0:03:11]} 6. Nb3 {[%emt 0:00:06]} Be7 {[%emt 0:03:11]} 7. c4 {[%emt 0:00:11]} O-O {[%emt 0:04:10]} 8. Nc3 {[%emt 0:00:36]} a5 {[%emt 0:04:34]} 9. Be3 {[%emt 0:00:16]} Nc6 {[%emt 0:13:10]} 10. Be2 {[%emt 0:06:53]} a4 {[%emt 0:03:26]} 11. Nd2 {[%emt 0:00:15]} Nh5 {[%emt 0:08:20]} 12. Nd5 {[%emt 0:11:56]} Nf4 {[%emt 0:04:43]} 13. O-O {[%emt 0:09:54]} Bg5 {[%emt 0:03:52]} 14. Bb6 {[%emt 0:07:17]} Qd7 {[%emt 0:01:03]} 15. Bf2 {[%emt 0:04:53]} Nd4 {[%emt 0:12:46]} 16. Nxf4 {[%emt 0:04:32]} Bxf4 {[%emt 0:00:18]} 17. Nb1 {[%emt 0:01:28]} Qe6 {[%emt 0:07:50]} 18. g3 {[%emt 0:04:18]} Bg5 {[%emt 0:01:01]} 19. Nc3 {[%emt 0:10:21]} f5 {[%emt 0:03:23]} 20. Bxd4 {[%emt 0:08:57]} exd4 {[%emt 0:00:06]} 21. Qxd4 {[%emt 0:00:11]} Bf6 {[%emt 0:03:25]} 22. Qd3 {[%emt 0:10:19]} a3 {[%emt 0:01:08]} 23. b3 {[%emt 0:00:45]} fxe4 {[%emt 0:01:02]} 24. fxe4 {[%emt 0:03:32]} Qe5 {[%emt 0:03:00]} 25. Nd5 {[%emt 0:03:50]} Bh3 {[%emt 0:05:11]} 26. Rfd1 {[%emt 0:01:30]} Rae8 {[%emt 0:02:53]} 27. Bf1 {[%emt 0:05:07]} Bg4 {[%emt 0:05:47]} 28. Be2 {[%emt 0:05:00]} Bh3 {[%emt 0:00:02]} 29. Bf1 {[%emt 0:00:14]} Bg4 {[%emt 0:00:07]} 30. Be2 {[%emt 0:00:15]} Bh3 {[%emt 0:03:49]} 1/2-1/2

[Event "14th SRB-ch Women 2020"]
[Site "Vrnjacka Banja"]
[Date "2020.12.09"]
[Round "4.2"]
[White "Eric, Jovana"]
[Black "Gajcin, Marina"]
[Result "1-0"]
[ECO "B52"]
[WhiteElo "2278"]
[BlackElo "2239"]
[Annotator "ChessBase"]
[PlyCount "91"]
[EventDate "2020.12.07"]
[EventType "tourn"]
[EventCountry "SRB"]
[SourceTitle "playchess.com"]
[Source "ChessBase"]
[SourceQuality "1"]
[TimeControl "40/5400+30:1800+30"]

1. e4 {[%emt 0:00:00]} c5 {[%emt 0:00:00]} 2. Nf3 {[%emt 0:00:00]} d6 {[%emt 0:00:00]} 3. Bb5+ {[%emt 0:00:00]} Bd7 {[%emt 0:01:36]} 4. Bxd7+ {[%emt 0:00:40]} Qxd7 {[%emt 0:00:07]} 5. O-O {[%emt 0:00:51]} g6 {[%emt 0:01:39]} 6. c3 {[%emt 0:01:32]} Bg7 {[%emt 0:13:45]} 7. d4 {[%emt 0:01:45]} Nf6 {[%emt 0:14:14]} 8. Qe2 {[%emt 0:05:17]} cxd4 {[%emt 0:11:55]} 9. cxd4 {[%emt 0:00:47]} O-O {[%emt 0:00:14]} 10. Nc3 {[%emt 0:05:11]} Nc6 {[%emt 0:01:49]} 11. Rd1 {[%emt 0:01:15]} d5 {[%emt 0:07:11]} 12. e5 {[%emt 0:02:13]} Ne8 {[%emt 0:00:06]} 13. Bf4 {[%emt 0:11:19]} Nc7 {[%emt 0:08:19]} 14. Qe3 {[%emt 0:01:28]} Ne6 {[%emt 0:08:18]} 15. Bh6 {[%emt 0:04:15]} f5 {[%emt 0:01:18]} 16. exf6 {[%emt 0:02:58]} exf6 {[%emt 0:00:40]} 17. Bxg7 {[%emt 0:00:28]} Nxg7 {[%emt 0:00:56]} 18. Qf4 {[%emt 0:05:59]} Qf5 {[%emt 0:04:10]} 19. Qd2 {[%emt 0:08:46]} Rae8 {[%emt 0:01:18]} 20. Rac1 {[%emt 0:04:09]} Nh5 {[%emt 0:02:12]} 21. Ne2 {[%emt 0:09:56]} Qg4 {[%emt 0:06:45]} 22. Rc5 {[%emt 0:04:07]} Re7 {[%emt 0:06:57]} 23. h3 {[%emt 0:06:03]} Qf5 {[%emt 0:00:00]} 24. Nh2 {[%emt 0:01:01]} Qe6 {[%emt 0:02:35]} 25. Nc3 {[%emt 0:03:08]} Rd8 {[%emt 0:00:07]} 26. Nf3 {[%emt 0:02:08]} Qf5 {[%emt 0:00:48]} 27. Kh2 {[%emt 0:09:52]} g5 {[%emt 0:01:28]} 28. Ne1 {[%emt 0:02:44]} Nf4 {[%emt 0:00:43]} 29. Nc2 {[%emt 0:00:43]} Qd7 {[%emt 0:03:55]} 30. Ne3 {[%emt 0:01:06]} Nb4 {[%emt 0:00:33]} 31. a3 {[%emt 0:02:10]} b6 {[%emt 0:00:13]} 32. Rb5 {[%emt 0:00:48]} Nc6 {[%emt 0:01:34]} 33. Ncxd5 {[%emt 0:01:35]} Rf7 {[%emt 0:00:24]} 34. Nxf4 {[%emt 0:00:44]} gxf4 {[%emt 0:00:31]} 35. Ng4 {[%emt 0:00:05]} Nxd4 {[%emt 0:00:19]} 36. Nh6+ {[%emt 0:01:16]} Kf8 {[%emt 0:00:00]} 37. Qb4+ {[%emt 0:00:51]} Ke8 {[%emt 0:01:15]} 38. Nxf7 {[%emt 0:00:32]} Kxf7 {[%emt 0:00:17]} 39. Rh5 {[%emt 0:00:21]} Kg6 {[%emt 0:00:44]} 40. Rh4 {[%emt 0:00:58]} Nf3+ {[%emt 0:00:28]} 41. gxf3 {[%emt 0:30:06]} Qxd1 {[%emt 0:30:05]} 42. Qe4+ {[%emt 0:00:25]} f5 {[%emt 0:00:51]} 43. Qe6+ {[%emt 0:00:34]} Kg7 {[%emt 0:00:04]} 44. Qe7+ {[%emt 0:00:27]} Kg6 {[%emt 0:00:16]} 45. Qxh7+ {[%emt 0:00:18]} Kf6 {[%emt 0:00:02]} 46. Rh6+ {[%emt 0:02:09]} 1-0

[Event "14th SRB-ch Women 2020"]
[Site "Vrnjacka Banja"]
[Date "2020.12.09"]
[Round "4.3"]
[White "Chelushkina, Irina"]
[Black "Rapport, Jovana"]
[Result "0-1"]
[ECO "B10"]
[WhiteElo "2224"]
[BlackElo "2308"]
[Annotator "NA"]
[PlyCount "78"]
[EventDate "2020.12.07"]
[EventType "tourn"]
[EventCountry "SRB"]
[SourceTitle "playchess.com"]
[Source "ChessBase"]
[SourceQuality "1"]
[TimeControl "40/5400+30:1800+30"]

1. e4 {[%emt 0:00:00]} c6 {[%emt 0:00:38]} 2. d3 {[%emt 0:00:00]} d5 {[%emt 0:00:39]} 3. Nd2 {[%emt 0:00:00]} e5 {[%emt 0:01:37]} 4. Ngf3 {[%emt 0:00:00]} Bd6 {[%emt 0:00:14]} 5. c3 {[%emt 0:01:15]} Ne7 {[%emt 0:04:34]} 6. Be2 {[%emt 0:01:08]} O-O {[%emt 0:00:19]} 7. O-O {[%emt 0:00:03]} Re8 {[%emt 0:12:46]} 8. c4 {[%emt 0:05:16]} d4 {[%emt 0:00:38]} 9. c5 {[%emt 0:00:29]} Bc7 {[%emt 0:00:33]} 10. Nc4 {[%emt 0:06:37]} Ng6 {[%emt 0:00:34]} 11. b4 {[%emt 0:03:25]} a5 {[%emt 0:16:09]} 12. bxa5 {[%emt 0:05:32]} Nd7 {[%emt 0:00:46]} 13. Qc2 {[%emt 0:11:01]} Nxc5 {[%emt 0:05:34]} 14. Ncxe5 {[%emt 0:04:06]} (14. Bg5 $15 f6 15. Bd2) 14... Nxe5 {[%emt 0:00:34]} 15. Nxe5 {[%emt 0:06:15]} Rxe5 {[%emt 0:07:18]} ({But not} 15... Bxe5 16. Qxc5 Bd6 17. Qc2 $15) 16. f4 {[%emt 0:00:05]} Rxe4 {[%emt 0:09:00]} 17. dxe4 {[%emt 0:01:08]} d3 {[%emt 0:00:07]} 18. Bxd3 $2 {[%emt 0:00:02]} (18. Qxc5 $17 {was the only chance.} dxe2 19. Re1 Bxa5 20. Be3 (20. Rxe2 $2 Bb6 $19) 20... Bxe1 21. Rxe1) 18... Qd4+ $19 {[%emt 0:03:18]} ({Resist} 18... Nxd3 19. Be3 $19) ({Weaker is} 18... Rxa5 19. Bc4 $14) 19. Qf2 {[%emt 0:07:28]} Qxf2+ {[%emt 0:00:47]} 20. Kxf2 {[%emt 0:00:00]} Nxd3+ {[%emt 0:00:09]} 21. Kf3 {[%emt 0:00:01]} Nxc1 {[%emt 0:02:50]} 22. Rfxc1 {[%emt 0:00:00]} Rxa5 {[%emt 0:00:06]} 23. a4 {[%emt 0:00:03]} f5 {[%emt 0:01:54]} 24. e5 {[%emt 0:02:34]} Kf7 {[%emt 0:02:10]} 25. h4 {[%emt 0:00:45]} Bd7 {[%emt 0:00:30]} 26. Rd1 {[%emt 0:01:04]} Ke7 {[%emt 0:00:52]} 27. h5 {[%emt 0:04:23]} c5 {[%emt 0:02:39]} 28. g4 {[%emt 0:00:20]} fxg4+ {[%emt 0:01:16]} 29. Kg3 {[%emt 0:00:04]} c4 {[%emt 0:06:24]} 30. Rdc1 {[%emt 0:01:02]} Rc5 {[%emt 0:00:23]} 31. Rab1 {[%emt 0:00:27]} b6 {[%emt 0:00:46]} 32. Rc3 {[%emt 0:03:32]} Bxa4 {[%emt 0:02:03]} 33. Kxg4 {[%emt 0:00:05]} Bd7+ {[%emt 0:00:25]} 34. Kh4 {[%emt 0:00:41]} Bf5 {[%emt 0:01:01]} 35. Rg1 {[%emt 0:01:15]} g6 {[%emt 0:00:21]} 36. Ra3 {[%emt 0:03:14]} c3 {[%emt 0:01:23]} 37. h6 {[%emt 0:00:28]} c2 {[%emt 0:01:31]} 38. Rc1 {[%emt 0:00:05]} Rc4 {[%emt 0:01:32]} 39. Kg3 {[%emt 0:00:39]} g5 {[%emt 0:00:28]} 0-1

[Event "14th SRB-ch Women 2020"]
[Site "Vrnjacka Banja"]
[Date "2020.12.09"]
[Round "4.4"]
[White "Drljevic, Ljilja"]
[Black "Srdanovic, Jovana"]
[Result "1/2-1/2"]
[ECO "B14"]
[WhiteElo "2174"]
[BlackElo "2149"]
[Annotator "RC"]
[PlyCount "25"]
[EventDate "2020.12.07"]
[EventType "tourn"]
[EventCountry "SRB"]
[SourceTitle "playchess.com"]
[Source "ChessBase"]
[SourceQuality "1"]
[TimeControl "40/5400+30:1800+30"]

1. c4 {[%emt 0:00:00]} c6 {[%emt 0:00:00]} 2. e4 {[%emt 0:00:43]} d5 {[%emt 0:00:08]} 3. exd5 {[%emt 0:00:11]} cxd5 {[%emt 0:00:05]} 4. d4 {[%emt 0:01:25]} Nf6 {[%emt 0:00:17]} 5. Nc3 {[%emt 0:00:15]} Nc6 {[%emt 0:04:30]} 6. Nf3 {[%emt 0:00:12]} e6 {[%emt 0:06:34]} 7. c5 {[%emt 0:01:17]} Be7 {[%emt 0:01:05]} 8. Bd3 {[%emt 0:01:41]} O-O {[%emt 0:00:57]} 9. O-O {[%emt 0:00:28]} b6 {[%emt 0:01:10]} 10. cxb6 {[%emt 0:12:17]} axb6 {[%emt 0:00:37]} 11. a3 {[%emt 0:15:17]} Ba6 {[%emt 0:10:36]} 12. Re1 {[%emt 0:04:19]} Bxd3 {[%emt 0:05:58]} 13. Qxd3 {[%emt 0:00:11]} 1/2-1/2

[Event "14th SRB-ch Women 2020"]
[Site "Vrnjacka Banja"]
[Date "2020.12.09"]
[Round "4.5"]
[White "Benderac, Ana"]
[Black "Prudnikova, Svetlana"]
[Result "1/2-1/2"]
[ECO "D35"]
[WhiteElo "2202"]
[BlackElo "2181"]
[Annotator "RC"]
[PlyCount "20"]
[EventDate "2020.12.07"]
[EventType "tourn"]
[EventCountry "SRB"]
[SourceTitle "playchess.com"]
[Source "ChessBase"]
[SourceQuality "1"]
[TimeControl "40/5400+30:1800+30"]

1. d4 {[%emt 0:00:00]} d5 {[%emt 0:00:00]} 2. c4 {[%emt 0:00:04]} e6 {[%emt 0:00:00]} 3. Nc3 {[%emt 0:00:06]} Nf6 {[%emt 0:00:00]} 4. Nf3 {[%emt 0:00:06]} Be7 {[%emt 0:00:15]} 5. cxd5 {[%emt 0:00:17]} exd5 {[%emt 0:00:02]} 6. Bg5 {[%emt 0:00:09]} c6 {[%emt 0:00:10]} 7. e3 {[%emt 0:00:07]} Bf5 {[%emt 0:00:10]} 8. Bd3 {[%emt 0:00:14]} Bxd3 {[%emt 0:00:10]} 9. Qxd3 {[%emt 0:00:05]} Nbd7 {[%emt 0:00:07]} 10. O-O {[%emt 0:00:08]} O-O {[%emt 0:00:08]} 1/2-1/2

[Event "14th SRB-ch Women 2020"]
[Site "Vrnjacka Banja"]
[Date "2020.12.10"]
[Round "5.4"]
[White "Gajcin, Marina"]
[Black "Chelushkina, Irina"]
[Result "1-0"]
[ECO "B08"]
[WhiteElo "2239"]
[BlackElo "2224"]
[Annotator "RC"]
[PlyCount "75"]
[EventDate "2020.12.07"]
[EventType "tourn"]
[EventCountry "SRB"]
[SourceTitle "playchess.com"]
[Source "ChessBase"]
[SourceQuality "1"]
[TimeControl "40/5400+30:1800+30"]

1. e4 {[%emt 0:00:00]} g6 {[%emt 0:01:44]} 2. d4 {[%emt 0:00:00]} Bg7 {[%emt 0:00:03]} 3. Nf3 {[%emt 0:01:26]} d6 {[%emt 0:02:22]} 4. Nc3 {[%emt 0:03:24]} c6 {[%emt 0:00:55]} 5. a4 {[%emt 0:06:53]} Nf6 {[%emt 0:01:06]} 6. Be3 {[%emt 0:01:31]} Qa5 {[%emt 0:00:48]} 7. Bd3 {[%emt 0:06:44]} O-O {[%emt 0:03:40]} 8. O-O {[%emt 0:04:50]} e5 {[%emt 0:01:58]} 9. h3 {[%emt 0:10:35]} Nbd7 {[%emt 0:06:50]} 10. Qd2 {[%emt 0:09:54]} Nh5 {[%emt 0:01:44]} 11. d5 {[%emt 0:05:31]} Qc7 {[%emt 0:05:16]} 12. dxc6 {[%emt 0:05:46]} bxc6 {[%emt 0:06:50]} 13. Rfd1 {[%emt 0:02:21]} Nhf6 {[%emt 0:18:33]} 14. Bc4 {[%emt 0:05:00]} Ne8 {[%emt 0:00:11]} 15. a5 {[%emt 0:03:41]} Ndf6 {[%emt 0:03:06]} 16. b4 {[%emt 0:06:18]} Rb8 {[%emt 0:03:02]} 17. Rab1 {[%emt 0:00:12]} a6 {[%emt 0:04:53]} 18. Qe2 {[%emt 0:00:46]} Qb7 {[%emt 0:00:13]} 19. Bd3 {[%emt 0:04:05]} Nc7 {[%emt 0:05:30]} 20. Na4 {[%emt 0:01:34]} Nfe8 {[%emt 0:05:58]} 21. Nb6 {[%emt 0:02:03]} h6 {[%emt 0:09:31]} 22. c4 {[%emt 0:02:45]} Be6 {[%emt 0:01:27]} 23. b5 {[%emt 0:01:48]} cxb5 {[%emt 0:02:49]} 24. cxb5 {[%emt 0:00:39]} Nxb5 {[%emt 0:00:03]} 25. Bxb5 {[%emt 0:00:38]} axb5 {[%emt 0:00:04]} 26. Qxb5 {[%emt 0:00:16]} Qxe4 {[%emt 0:02:21]} 27. Rb4 {[%emt 0:01:28]} Nc7 {[%emt 0:02:38]} 28. Qa4 {[%emt 0:02:58]} Qf5 {[%emt 0:00:05]} 29. a6 {[%emt 0:01:39]} Nxa6 {[%emt 0:00:19]} 30. Qxa6 {[%emt 0:00:40]} d5 {[%emt 0:00:01]} 31. Nxd5 {[%emt 0:01:44]} Bxd5 {[%emt 0:00:19]} 32. Rxb8 {[%emt 0:00:11]} Rxb8 {[%emt 0:00:11]} 33. Rxd5 {[%emt 0:00:06]} Rb1+ {[%emt 0:00:48]} 34. Kh2 {[%emt 0:00:06]} Kh7 {[%emt 0:00:51]} 35. Qc6 {[%emt 0:03:01]} Ra1 {[%emt 0:01:08]} 36. Qe8 {[%emt 0:01:51]} g5 {[%emt 0:01:14]} 37. Nxe5 {[%emt 0:01:25]} Qe4 {[%emt 0:01:20]} 38. Qxf7 {[%emt 0:00:30]} 1-0

[Event "14th SRB-ch Women 2020"]
[Site "Vrnjacka Banja"]
[Date "2020.12.10"]
[Round "5.5"]
[White "Injac, Teodora"]
[Black "Eric, Jovana"]
[Result "1-0"]
[ECO "A10"]
[WhiteElo "2290"]
[BlackElo "2278"]
[Annotator "RC"]
[PlyCount "111"]
[EventDate "2020.12.07"]
[EventType "tourn"]
[EventCountry "SRB"]
[SourceTitle "playchess.com"]
[Source "ChessBase"]
[SourceQuality "1"]
[TimeControl "40/5400+30:1800+30"]

1. Nf3 {[%emt 0:00:00]} e6 {[%emt 0:00:00]} 2. g3 {[%emt 0:02:19]} f5 {[%emt 0:00:01]} 3. Bg2 {[%emt 0:00:19]} Nf6 {[%emt 0:00:19]} 4. O-O {[%emt 0:01:50]} Be7 {[%emt 0:00:34]} 5. c4 {[%emt 0:00:50]} O-O {[%emt 0:00:53]} 6. Nc3 {[%emt 0:03:11]} c6 {[%emt 0:05:40]} 7. b3 {[%emt 0:08:47]} a5 {[%emt 0:12:14]} 8. Bb2 {[%emt 0:04:29]} Na6 {[%emt 0:00:17]} 9. d4 {[%emt 0:10:37]} Ne4 {[%emt 0:05:58]} 10. c5 {[%emt 0:07:35]} b6 {[%emt 0:13:12]} 11. cxb6 {[%emt 0:05:14]} Nxc3 {[%emt 0:02:14]} 12. Bxc3 {[%emt 0:00:09]} Qxb6 {[%emt 0:00:12]} 13. Ne5 {[%emt 0:03:55]} Nb4 {[%emt 0:07:29]} 14. Qd2 {[%emt 0:01:19]} Qc7 {[%emt 0:03:48]} 15. Nc4 {[%emt 0:04:35]} d5 {[%emt 0:10:31]} 16. Ne5 {[%emt 0:04:30]} c5 {[%emt 0:06:34]} 17. Rfc1 {[%emt 0:01:27]} Bb7 {[%emt 0:07:31]} 18. dxc5 {[%emt 0:11:58]} Bf6 {[%emt 0:07:20]} 19. Nd3 {[%emt 0:09:11]} Nxd3 {[%emt 0:05:58]} 20. Qxd3 {[%emt 0:01:00]} Be7 {[%emt 0:04:07]} 21. Qe3 {[%emt 0:03:17]} Qc6 {[%emt 0:00:18]} 22. Bd4 {[%emt 0:02:07]} Rfe8 {[%emt 0:00:26]} 23. Qc3 {[%emt 0:01:31]} Bf8 {[%emt 0:00:25]} 24. a3 {[%emt 0:01:57]} Ba6 {[%emt 0:02:44]} 25. e3 {[%emt 0:00:37]} Bb5 {[%emt 0:01:23]} 26. a4 {[%emt 0:00:55]} Be2 {[%emt 0:00:44]} 27. Ra2 {[%emt 0:00:55]} Ba6 {[%emt 0:00:52]} 28. Qxa5 {[%emt 0:01:09]} Rec8 {[%emt 0:01:20]} 29. Qc3 {[%emt 0:00:43]} Bb7 {[%emt 0:00:22]} 30. f4 {[%emt 0:01:26]} Qd7 {[%emt 0:00:27]} 31. Bf1 {[%emt 0:03:25]} Bc6 {[%emt 0:00:05]} 32. Rca1 {[%emt 0:00:18]} Rcb8 {[%emt 0:00:35]} 33. Bd3 {[%emt 0:02:02]} Qb7 {[%emt 0:00:36]} 34. Rb2 {[%emt 0:00:39]} Qd7 {[%emt 0:00:20]} 35. Bc2 {[%emt 0:00:50]} Rc8 {[%emt 0:00:54]} 36. Rba2 {[%emt 0:00:32]} Rc7 {[%emt 0:00:48]} 37. b4 {[%emt 0:00:30]} Rca7 {[%emt 0:00:31]} 38. Qb3 {[%emt 0:00:48]} Rb8 {[%emt 0:00:40]} 39. b5 {[%emt 0:00:37]} Qe8 {[%emt 0:00:19]} 40. Qc3 {[%emt 0:00:39]} Ba8 {[%emt 0:00:48]} 41. c6 {[%emt 0:31:01]} Rf7 {[%emt 0:00:41]} 42. Bd3 {[%emt 0:00:00]} Rc8 {[%emt 0:07:23]} 43. Rc2 {[%emt 0:00:00]} Bd6 {[%emt 0:01:52]} 44. Rac1 {[%emt 0:00:00]} Qf8 {[%emt 0:01:41]} 45. Qb3 {[%emt 0:00:00]} Ba3 {[%emt 0:02:02]} 46. Ra1 {[%emt 0:00:00]} Bd6 {[%emt 0:00:29]} 47. a5 {[%emt 0:00:00]} h6 {[%emt 0:02:36]} 48. a6 {[%emt 0:00:00]} Kh7 {[%emt 0:01:24]} 49. b6 {[%emt 0:00:00]} Bxc6 {[%emt 0:00:40]} 50. b7 {[%emt 0:00:00]} Bxb7 {[%emt 0:00:05]} 51. axb7 {[%emt 0:00:00]} Rb8 {[%emt 0:00:18]} 52. Ba6 {[%emt 0:00:00]} Rc7 {[%emt 0:01:43]} 53. Rxc7 {[%emt 0:00:00]} Bxc7 {[%emt 0:00:03]} 54. Ba7 {[%emt 0:00:00]} Rd8 {[%emt 0:00:04]} 55. Rc1 {[%emt 0:00:00]} Qd6 {[%emt 0:00:24]} 56. Bf1 {[%emt 0:00:00]} 1-0

[Event "14th SRB-ch Women 2020"]
[Site "Vrnjacka Banja"]
[Date "2020.12.11"]
[Round "7.1"]
[White "Srdanovic, Jovana"]
[Black "Velikic, Adela"]
[Result "0-1"]
[ECO "D17"]
[WhiteElo "2149"]
[BlackElo "2278"]
[Annotator "ChessBase"]
[PlyCount "94"]
[EventDate "2020.12.07"]
[EventType "tourn"]
[EventCountry "SRB"]
[SourceTitle "playchess.com"]
[Source "ChessBase"]
[SourceQuality "1"]
[TimeControl "40/5400+30:1800+30"]

1. d4 {[%emt 0:00:00]} d5 {[%emt 0:00:00]} 2. c4 {[%emt 0:00:00]} c6 {[%emt 0:00:00]} 3. Nc3 {[%emt 0:00:00]} Nf6 {[%emt 0:00:00]} 4. Nf3 {[%emt 0:00:00]} dxc4 {[%emt 0:00:07]} 5. a4 {[%emt 0:00:01]} Bf5 {[%emt 0:00:07]} 6. Ne5 {[%emt 0:03:10]} Nbd7 {[%emt 0:01:45]} 7. Nxc4 {[%emt 0:00:07]} Qc7 {[%emt 0:00:27]} 8. g3 {[%emt 0:02:11]} e5 {[%emt 0:00:13]} 9. dxe5 {[%emt 0:01:22]} Nxe5 {[%emt 0:00:08]} 10. Nxe5 {[%emt 0:00:34]} Qxe5 {[%emt 0:00:20]} 11. Bf4 {[%emt 0:01:19]} Qe6 {[%emt 0:05:48]} 12. Bg2 {[%emt 0:06:38]} Bc5 {[%emt 0:08:46]} 13. O-O {[%emt 0:00:33]} O-O {[%emt 0:01:01]} 14. a5 {[%emt 0:05:02]} Bh3 {[%emt 0:12:01]} 15. Qd3 {[%emt 0:04:41]} Bxg2 {[%emt 0:14:12]} 16. Kxg2 {[%emt 0:00:07]} Bb4 {[%emt 0:06:32]} 17. a6 {[%emt 0:11:50]} b6 {[%emt 0:03:20]} 18. Na2 {[%emt 0:02:46]} Rfd8 {[%emt 0:07:39]} 19. Qe3 {[%emt 0:02:04]} Qxe3 {[%emt 0:01:50]} 20. Bxe3 {[%emt 0:00:06]} Bd2 {[%emt 0:01:03]} 21. Bxd2 {[%emt 0:10:00]} Rxd2 {[%emt 0:00:05]} 22. Rab1 {[%emt 0:00:03]} Rxe2 {[%emt 0:06:22]} 23. Rfe1 {[%emt 0:01:06]} Rxe1 {[%emt 0:03:58]} 24. Rxe1 {[%emt 0:00:04]} Nd5 {[%emt 0:01:04]} 25. Rc1 {[%emt 0:01:45]} c5 {[%emt 0:04:04]} 26. Rd1 {[%emt 0:03:27]} Nc7 {[%emt 0:03:36]} 27. Nc3 {[%emt 0:00:03]} Kf8 {[%emt 0:04:23]} 28. Rd7 {[%emt 0:00:46]} Rc8 {[%emt 0:03:39]} 29. Nd5 {[%emt 0:02:28]} Nxd5 {[%emt 0:01:08]} 30. Rxd5 {[%emt 0:00:05]} Ke7 {[%emt 0:00:38]} 31. Kf3 {[%emt 0:00:14]} Rc6 {[%emt 0:02:34]} 32. Rh5 {[%emt 0:08:06]} h6 {[%emt 0:00:25]} 33. Ke3 {[%emt 0:02:24]} Rd6 {[%emt 0:01:44]} 34. Rh4 {[%emt 0:01:59]} Rd1 {[%emt 0:02:21]} 35. Re4+ {[%emt 0:04:06]} Kf8 {[%emt 0:02:04]} 36. Rc4 {[%emt 0:03:26]} Rb1 {[%emt 0:00:22]} 37. Rc2 {[%emt 0:00:06]} Ke7 {[%emt 0:00:21]} 38. Rd2 {[%emt 0:00:17]} Ra1 {[%emt 0:00:20]} 39. Ke4 {[%emt 0:00:11]} Rxa6 {[%emt 0:01:04]} 40. Kd5 {[%emt 0:00:39]} Kd7 {[%emt 0:01:25]} 41. b4 {[%emt 0:30:06]} cxb4 {[%emt 0:31:18]} 42. Kc4+ {[%emt 0:00:05]} Kc6 {[%emt 0:00:42]} 43. Kxb4 {[%emt 0:00:06]} Ra5 {[%emt 0:00:42]} 44. Rd8 {[%emt 0:00:12]} Ra2 {[%emt 0:00:59]} 45. f4 {[%emt 0:00:16]} a5+ {[%emt 0:00:54]} 46. Kc4 {[%emt 0:00:34]} Rc2+ {[%emt 0:00:00]} 47. Kb3 {[%emt 0:00:00]} Rxh2 {[%emt 0:00:00]} 0-1

[Event "14th SRB-ch Women 2020"]
[Site "Vrnjacka Banja"]
[Date "2020.12.11"]
[Round "7.2"]
[White "Rapport, Jovana"]
[Black "Prudnikova, Svetlana"]
[Result "1-0"]
[ECO "B38"]
[WhiteElo "2308"]
[BlackElo "2181"]
[Annotator "ChessBase"]
[PlyCount "41"]
[EventDate "2020.12.07"]
[EventType "tourn"]
[EventCountry "SRB"]
[SourceTitle "playchess.com"]
[Source "ChessBase"]
[SourceQuality "1"]
[TimeControl "40/5400+30:1800+30"]

1. Nf3 {[%emt 0:00:00]} c5 {[%emt 0:00:22]} 2. c4 {[%emt 0:03:27]} Nc6 {[%emt 0:01:33]} 3. d4 {[%emt 0:00:21]} cxd4 {[%emt 0:01:31]} 4. Nxd4 {[%emt 0:01:53]} g6 {[%emt 0:00:10]} 5. e4 {[%emt 0:00:46]} Bg7 {[%emt 0:00:05]} 6. Be3 {[%emt 0:00:08]} Qb6 {[%emt 0:02:52]} 7. Nb3 {[%emt 0:10:01]} Qd8 {[%emt 0:02:43]} 8. Qd2 {[%emt 0:02:22]} Nf6 {[%emt 0:00:24]} 9. Nc3 {[%emt 0:00:16]} d6 {[%emt 0:05:07]} 10. f3 {[%emt 0:04:44]} O-O {[%emt 0:00:56]} 11. Be2 {[%emt 0:00:19]} a5 {[%emt 0:02:19]} 12. Na4 {[%emt 0:04:28]} Nd7 {[%emt 0:03:20]} 13. h4 {[%emt 0:00:54]} b6 {[%emt 0:10:26]} 14. h5 {[%emt 0:09:39]} Re8 {[%emt 0:08:48]} 15. hxg6 {[%emt 0:05:20]} hxg6 {[%emt 0:00:02]} 16. Bh6 {[%emt 0:00:30]} Bh8 {[%emt 0:00:04]} 17. O-O-O {[%emt 0:09:33]} Ba6 {[%emt 0:08:03]} 18. Rh3 {[%emt 0:01:50]} Nc5 {[%emt 0:09:34]} 19. Rdh1 {[%emt 0:08:11]} Nxb3+ {[%emt 0:12:19]} 20. axb3 {[%emt 0:00:12]} Nd4 {[%emt 0:01:47]} 21. Bf8 {[%emt 0:00:37]} 1-0

[Event "14th SRB-ch Women 2020"]
[Site "Vrnjacka Banja"]
[Date "2020.12.11"]
[Round "7.4"]
[White "Injac, Teodora"]
[Black "Drljevic, Ljilja"]
[Result "1/2-1/2"]
[ECO "D24"]
[WhiteElo "2290"]
[BlackElo "2174"]
[Annotator "ChessBase"]
[PlyCount "37"]
[EventDate "2020.12.07"]
[EventType "tourn"]
[EventCountry "SRB"]
[SourceTitle "playchess.com"]
[Source "ChessBase"]
[SourceQuality "1"]
[TimeControl "40/5400+30:1800+30"]

1. Nf3 {[%emt 0:00:00]} Nf6 {[%emt 0:00:00]} 2. d4 {[%emt 0:00:00]} d5 {[%emt 0:02:25]} 3. c4 {[%emt 0:00:25]} e6 {[%emt 0:00:16]} 4. Nc3 {[%emt 0:02:29]} dxc4 {[%emt 0:00:11]} 5. e4 {[%emt 0:14:12]} b5 {[%emt 0:00:31]} 6. e5 {[%emt 0:00:17]} Nd5 {[%emt 0:00:04]} 7. Nxb5 {[%emt 0:00:12]} Nb6 {[%emt 0:00:03]} 8. Be2 {[%emt 0:01:08]} Nc6 {[%emt 0:09:14]} 9. O-O {[%emt 0:03:05]} Rb8 {[%emt 0:03:55]} 10. Bg5 {[%emt 0:08:21]} Qd7 {[%emt 0:05:54]} 11. b3 {[%emt 0:15:40]} Na5 {[%emt 0:35:43]} 12. Nc3 {[%emt 0:00:47]} Bb7 {[%emt 0:03:55]} 13. Bd2 {[%emt 0:08:06]} Be7 {[%emt 0:10:47]} 14. Na4 {[%emt 0:13:11]} Nxa4 {[%emt 0:04:14]} 15. bxa4 {[%emt 0:00:27]} Nc6 {[%emt 0:06:13]} 16. Be3 {[%emt 0:01:41]} Na5 {[%emt 0:01:37]} 17. Bd2 {[%emt 0:00:44]} Nc6 {[%emt 0:00:23]} 18. Be3 {[%emt 0:00:13]} Na5 {[%emt 0:01:18]} 19. Bd2 {[%emt 0:08:24]} 1/2-1/2